Workbook

Sheet 1. Forside
A1: Haderslev Spildevand A/S
D8: Bilag A
D13: Indholdsfortegnelse
C16: Fane nr. 2 | D16: Samlet prisloft
C17: Fane nr. 3 | D17: Driftsomkostninger
C18: Fane nr. 4 | D18: Historiske investeringer
C19: Fane nr. 5 | D19: Gennemførte investeringer
C20: Fane nr. 6 | D20: Korrektion investeringer
C21: Fane nr. 7 | D21: Planlagte investeringer
C22: Fane nr. 8 | D22: 1:1 omkostninger
C23: Fane nr. 9 | D23: Miljø- og servicemål
C24: Fane nr. 10 | D24: Klimatilpasning
C25: Fane nr. 11 | D25: Nettofinansielle poster
C26: Fane nr. 12 | D26: Over- eller underdækning
C27: Fane nr. 13 | D27: Kontrol med indtægtsrammen og oversigt over ekstraordinære effektiviseringsgevinster

Sheet 2. Samlet prisloft
A1: ='1. Forside'!A1 -> Haderslev Spildevand A/S
B4: Fane 2. Samlet prisloft for 2015
B6: Driftsomkostninger
B7: Korrigerede driftsomkostninger i prisloftet for 2014 | C7: ='3. Driftsomkostninger'!C18 -> 37134586.19 | D7: kr.
B8: Bortfald af væsentlige omkostninger | C8: =-'3. Driftsomkostninger'!C23 -> 0 | D8: kr.
B9: Korrektion for periodevise driftsomkostninger | C9: ='3. Driftsomkostninger'!C29 -> -722579 | D9: kr.
B10: Korrektion for prisudviklingen 2014-2015 | C10: ='3. Driftsomkostninger'!C35 -> 29129.60575 | D10: kr.
B11: Forhøjelse til effektivt niveau iht. benchmarkingen | C11: ='3. Driftsomkostninger'!C41 -> 0 | D11: kr.
B12: Korrektion for generelt effektiviseringskrav | C12: =-'3. Driftsomkostninger'!C47 -> -160212.8316 | D12: kr.
B13: Korrektion for individuelt effektiviseringskrav | C13: =-'3. Driftsomkostninger'!C56 -> -1370224.421 | D13: kr.
B14: Driftsomkostninger i alt | C14: =SUM(C7:C13) -> 34910699.55 | D14: kr. | E14: =C14 -> 34910699.55 | F14: kr.
B15: Investeringer
B16: Tillæg for historiske investeringer | C16: ='4. Historiske investeringer'!C9 -> 53737767.93 | D16: kr.
B17: Tillæg for gennemførte investeringer i 2011-2013 | C17: ='5. Gennemførte investeringer'!F26 -> 5693733.66 | D17: kr.
B18: Korrektion af tillæg for planlagte investeringer vedrørende 2013 | C18: ='6. Korrektion investeringer'!C10 -> -917294.7333 | D18: kr.
B19: Tillæg for planlagte investeringer i 2014 og 2015 | C19: ='7. Planlagte investeringer'!F41 -> 4666266.667 | D19: kr.
B20: Investeringstillæg i alt | C20: =SUM(C16:C19) -> 63180473.52 | D20: kr. | E20: =C20 -> 63180473.52 | F20: kr.
B21: Øvrige omkostninger mv.
B22: Tillæg for 1:1 omkostninger i 2015 | C22: ='8. 1-1 omkostninger'!C11 -> 3233000 | D22: kr.
B23: Tillæg vedr. revisorerklæringer og DANVA/FVD-kontingent | C23: ='8. 1-1 omkostninger'!C17 -> 130000 | D23: kr.
B24: Korrektion ift. faktiske 1:1 omkostninger i 2013 | C24: ='8. 1-1 omkostninger'!C23 -> 1536817 | D24: kr.
B25: Tillæg for driftsomkostninger til miljø- og servicemål i 2015 | C25: ='9. Miljø- og servicemål'!C8 -> 273750 | D25: kr.
B26: Korrektion ift. faktiske driftsomkostninger til miljø- og servicemål i 2013 | C26: ='9. Miljø- og servicemål'!C14 -> -39476 | D26: kr.
B27: Tillæg for driftsomkostninger til medfinansiering af klimatilpasningsprojekter i 2015 | C27: ='10. Klimatilpasning'!C9 -> 0 | D27: kr.
B28: Korrektion ift. faktiske omkostninger til medfinansiering af klimatilpasningsprojekter i 2013 | C28: ='10. Klimatilpasning'!C15 -> 0 | D28: kr.
B29: Tillæg/fradrag for nettofinansielle poster i 2015 | C29: ='11. Nettofinansielle poster'!C9 -> 781000 | D29: kr.
B30: Korrektion ift. faktiske nettofinansielle poster i 2013 | C30: ='11. Nettofinansielle poster'!C15 -> -841144 | D30: kr.
B31: Øvrige omkostninger mv. i alt | C31: =SUM(C22:C30) -> 5073947 | D31: kr. | E31: =C31 -> 5073947 | F31: kr.
B32: Historisk over- eller underdækning
B33: Tillæg/fradrag for over- eller underdækning til og med 2010 | C33: ='12. Over- eller underdækning'!C11 -> 700861 | D33: kr. | E33: =C33 -> 700861 | F33: kr.
B34: Korrektion i forhold til tidligere indtægtsramme
B35: Korrektion for overholdelse af indtægtsramme i prisloft 2013 | C35: ='13. Kontrol med indtægtsrammen'!E27 -> 7746061.825 | D35: kr. | E35: =C35 -> 7746061.825 | F35: kr.
B36: Samlet prisloft
B37: Indtægtsramme i 2015 | E37: =SUM(E14:E35) -> 111612042.9 | F37: kr.
B38: Debiteret vandmængde i 2013 | E38: 2335303 | F38: m3
B39: Prisloft 2015 | E39: =E37/E38 -> 47.79338822 | F39: kr./m3

Sheet 3. Driftsomkostninger
A1: ='1. Forside'!A1 -> Haderslev Spildevand A/S
B4: Fane 3. Driftsomkostninger
B6: Driftsomkostningerne i prisloftet for 2014
B7: Korrigerede driftsomkostninger i prisloftet for 2013 (DOiPL 2013) | C7: 38453473.1 | D7: kr.
B8: Prisfremskrivning 1,5 pct. | C8: =0.015*SUM(C7:C7) -> 576802.0964 | D8: kr.
B9: Generelt effektiviseringskrav (0 pct.) | C9: 0 | D9: kr.
B10: Individuelt effektiviseringskrav | C10: -1895689 | D10: kr.
B11: Driftsomkostningerne i prisloftet for 2014 (DOiPL 2014) | C11: =SUM(C7:C10) -> 37134586.19 | D11: kr.
B14: Forskel i § 8, stk. 2, pkt. 1 - tillæg
B15: Godkendt tillæg i PL2014 prisfremskrevet til 2014-niveau | C15: 1488062.898 | D15: kr.
B16: Godkendt tillæg i PL2015 prisfremskrevet til 2014-niveau | C16: 1488062.898 | D16: kr.
B17: Forskel | C17: =C16-C15 -> 0 | D17: kr.
B18: Korrigerede driftsomkostninger i prisloftet for 2014 | C18: =C11+C17 -> 37134586.19 | D18: kr.
B21: Korrektion for forventet bortfald af væsentlige omkostninger
B22: Selskabets indberettede bortfald af væsentlige omkostninger inden 2015 | C22: 0 | D22: kr.
B23: Korrektion for forventet bortfald | C23: =SUM(C22:C22) -> 0 | D23: kr.
B26: Korrektion for periodevise driftsomkostninger
B27: Del af godkendt tillæg i PL2013 vedrørende omkostninger i 2013 | C27: 722579 | D27: kr.
B28: Faktisk udgift til periodevise driftsomkostninger i 2013 | C28: 0 | D28: kr.
B29: Korrektion for periodevise driftsomkostninger | C29: =C28-C27 -> -722579 | D29: kr.
B32: Korrektion for prisudviklingen fra 2014-2015
B33: Driftsomkostningerne i prisloftet for 2014 | C33: =C18-C23+C29 -> 36412007.19 | D33: kr.
B34: Prisudvikling 2014 - 2015 | C34: 0.08 | D34: pct.
B35: Korrektion for prisudvikling | C35: =C33*(C34/100) -> 29129.60575 | D35: kr.
B38: Eventuel forhøjelse til effektivt niveau iht. benchmarkingen
B39: Selskabets effektive driftsomkostninger iht. benchmarkingen | C39: 25892891.63 | D39: kr.
B40: Selskabets pristalskorrigerede driftsomkostninger i 2015-niveau | C40: =C33+C35 -> 36441136.8 | D40: kr.
B41: Eventuel forhøjelse til effektivt niveau | C41: =IF(C40>C39,0,C39-C40) -> 0 | D41: kr.
B44: Korrektion for generelt effektiviseringskrav
B45: Driftsomkostningerne i prisloftet for 2014 | C45: =C33 -> 36412007.19 | D45: kr.
B46: Generelt effektiviseringskrav | C46: 0.44 | D46: pct.
B47: Endeligt generelt effektiviseringskrav | C47: =C45*(C46/100) -> 160212.8316 | D47: kr.
B50: Korrektion for individuelt effektiviseringskrav
B51: Rå effektiviseringspotentiale | C51: 10356431.67 | D51: kr.
B52: Effektiviseringspotentiale efter eventuel korrektion for særlige forhold | C52: 10356431.67 | D52: kr.
B53: Effektiviseringspotentiale efter forsigtighedshensyn | C53: 5480897.682 | D53: kr.
B54: Effektiviseringspotentiale efter eventuel korrektion for sammensætning af signifikante costdrivere | C54: 5480897.682 | D54: kr.
B55: Umiddelbart effektiviseringskrav | C55: =C54/4 -> 1370224.421 | D55: kr.
B56: Endeligt individuelt effektiviseringskrav | C56: =IF(C55>0.05*C33,0.05*C33,IF(C55<0.01*C33,0,C55)) -> 1370224.421 | D56: kr.

Sheet 4. Historiske investeringer
A1: ='3. Driftsomkostninger'!A1 -> Haderslev Spildevand A/S
B4: Fane 4. Historiske investeringer
B6: Tillæg for historiske investeringer
B7: Værdi af selskabets materielle anlægsaktiver pr. 1. januar 2010 | C7: 2371860744 | D7: kr.
B8: Den årlige standardafskrivning på de materielle anlægsaktiver iht. POLKA | C8: 53737767.93 | D8: kr.
B9: Tillæg i alt i 2015 | C9: =C8 -> 53737767.93 | D9: kr.

Sheet 5. Gennemførte investeringer
A1: ='4. Historiske investeringer'!A1 -> Haderslev Spildevand A/S
B4: Fane 5. Gennemførte investeringer i 2010 - 2013
B6: Tillæg for gennemførte investeringer i 2013
B7: Beskrivelse af investeringen | C7: Årstal | D7: Std. levetid (år) | E7: Anskaffelses-pris (kr.) | F7: Afskrivning
B8: Tryksatte minipumpestationer (husstandssystemer) | C8: 2013 | D8: 30 | E8: 608339 | F8: =E8/D8 -> 20277.96667 | G8: kr.
B9: Pumpestationer i brønde (< 6,25 m2), Konstruktioner | C9: 2013 | D9: 50 | E9: 921911 | F9: 18438.22 | G9: kr.
B10: Pumpestationer i brønde (< 6,25 m2), Mek/EL | C10: 2013 | D10: 20 | E10: 2095536 | F10: 104776.8 | G10: kr.
B11: Pumpestationer i brønde (< 6,25 m2), SRO | C11: 2013 | D11: 10 | E11: 243000 | F11: 24300 | G11: kr.
B12: Pumpestationer m. overbygning (< 20 m2), Konstruktioner | C12: 2013 | D12: 50 | E12: 420885 | F12: 8417.7 | G12: kr.
B13: Jordbassin Klasse B | C13: 2013 | D13: 50 | E13: 3948629 | F13: 78972.58 | G13: kr.
B14: Andre bygninger (tekniske installationer, målere mv.) | C14: 2013 | D14: 75 | E14: 35814 | F14: 477.52 | G14: kr.
B15: Indløb med riste, Konstruktioner | C15: 2013 | D15: 60 | E15: 275879 | F15: 4597.983333 | G15: kr.
B16: Indløb med riste, Mek/EL | C16: 2013 | D16: 20 | E16: 4072314 | F16: 203615.7 | G16: kr.
B17: Indløb med riste, SRO | C17: 2013 | D17: 10 | E17: 559370 | F17: 55937 | G17: kr.
B18: Beluftningstanke, Mek/EL | C18: 2013 | D18: 20 | E18: 49564 | F18: 2478.2 | G18: kr.
B19: Beluftningstanke, SRO | C19: 2013 | D19: 10 | E19: 39307 | F19: 3930.7 | G19: kr.
B20: Slutafvanding, slam - højteknologisk (centrifuger), Konstruktioner | C20: 2013 | D20: 60 | E20: 1975169 | F20: 32919.48333 | G20: kr.
B21: Ledningsnet = Ø 200 mm | C21: 2013 | D21: 75 | E21: 37053426 | F21: 494045.68 | G21: kr.
B22: Brønde | C22: 2013 | D22: 75 | E22: 8177185 | F22: 109029.1333 | G22: kr.
B23: Stik | C23: 2013 | D23: 75 | E23: 3749060 | F23: 49987.46667 | G23: kr.
B24: Tillæg for 2013 | F24: =SUM(F8:F23) -> 1212202.133 | G24: kr.
B25: Tillæg for 2010 - 2012 | F25: 4481531.527 | G25: kr.
B26: Samlet tillæg for gennemførte investeringer | F26: =F24+F25 -> 5693733.66 | G26: kr.

Sheet 6. Korrektion investeringer
A1: ='5. Gennemførte investeringer'!A1 -> Haderslev Spildevand A/S
B4: Fane 6. Korrektion af tillæg for planlagte investeringer
B6: Korrektion af tillæg for planlagte investeringer vedr. 2013
B7: Tillæg for planlagte investeringer i 2013 i prisloft 2013 | C7: 1538667 | D7: kr.
B8: Tillæg for planlagte investeringer i 2013 i prisloft 2014 | C8: 1803032 | D8: kr.
B9: Selskabets faktiske afskrivninger på gennemførte investeringer i 2013 | C9: ='5. Gennemførte investeringer'!F24 -> 1212202.133 | D9: kr.
B10: Korrektion af tillæg for planlagte investeringer vedr. 2013 | C10: =C9-C7+C9-C8 -> -917294.7333 | D10: kr.

Sheet 7. Planlagte investeringer
A1: ='6. Korrektion investeringer'!A1 -> Haderslev Spildevand A/S
B4: Fane 7. Planlagte investeringer
B6: Tillæg for planlagte investeringer i 2014 og 2015
B7: Beskrivelse af investeringen | C7: Årstal | D7: Std. levetid (år) | E7: Anskaffelses-pris (kr.) | F7: Afskrivning
B8: Ledningsnet = Ø 200 mm | C8: 2014 | D8: 75 | E8: 10800000 | F8: =E8/D8 -> 144000 | G8: kr.
B9: Ledningsnet = Ø 200 mm | C9: 2014 | D9: 75 | E9: 7600000 | F9: =E9/D9 -> 101333.3333 | G9: kr.
B10: Ledningsnet = Ø 200 mm | C10: 2014 | D10: 75 | E10: 55000000 | F10: 733333.3333 | G10: kr.
B11: Ledningsnet = Ø 200 mm | C11: 2014 | D11: 75 | E11: 1500000 | F11: 20000 | G11: kr.
B12: Ledningsnet = Ø 200 mm | C12: 2014 | D12: 75 | E12: 22000000 | F12: 293333.3333 | G12: kr.
B13: Ledningsnet = Ø 200 mm | C13: 2014 | D13: 75 | E13: 1700000 | F13: 22666.66667 | G13: kr.
B14: Ledningsnet > Ø 1600 mm (rørbassiner og transportledninger) | C14: 2014 | D14: 75 | E14: 20200000 | F14: 269333.3333 | G14: kr.
B15: Ledningsnet > Ø 1600 mm (rørbassiner og transportledninger) | C15: 2014 | D15: 75 | E15: 14000000 | F15: 186666.6667 | G15: kr.
B16: Forafvanding, slam, Mek/EL | C16: 2014 | D16: 20 | E16: 2450000 | F16: 122500 | G16: kr.
B17: Forafvanding, slam, SRO | C17: 2014 | D17: 10 | E17: 500000 | F17: 50000 | G17: kr.
B18: Rådnetanke, slam, Konstruktioner | C18: 2014 | D18: 60 | E18: 8055000 | F18: 134250 | G18: kr.
B19: Rådnetanke, slam, Konstruktioner | C19: 2014 | D19: 60 | E19: 1125000 | F19: 18750 | G19: kr.
B20: Pumpestationer i brønde (< 6,25 m2), Mek/EL | C20: 2014 | D20: 20 | E20: 1500000 | F20: 75000 | G20: kr.
B21: Arbejdsplads | C21: 2014 | D21: 5 | E21: 750000 | F21: 150000 | G21: kr.
B22: Køretøjer, personbil | C22: 2014 | D22: 5 | E22: 600000 | F22: 120000 | G22: kr.
B23: Arbejdsplads | C23: 2014 | D23: 5 | E23: 1452000 | F23: 290400 | G23: kr.
B24: Ledningsnet = Ø 200 mm | C24: 2015 | D24: 75 | E24: 7800000 | F24: 104000 | G24: kr.
B25: Ledningsnet = Ø 200 mm | C25: 2015 | D25: 75 | E25: 7800000 | F25: 104000 | G25: kr.
B26: Ledningsnet = Ø 200 mm | C26: 2015 | D26: 75 | E26: 31400000 | F26: 418666.6667 | G26: kr.
B27: Ledningsnet = Ø 200 mm | C27: 2015 | D27: 75 | E27: 13500000 | F27: 180000 | G27: kr.
B28: Ledningsnet = Ø 200 mm | C28: 2015 | D28: 75 | E28: 14800000 | F28: 197333.3333 | G28: kr.
B29: Ledningsnet = Ø 200 mm | C29: 2015 | D29: 75 | E29: 3300000 | F29: 44000 | G29: kr.
B30: Stik | C30: 2015 | D30: 75 | E30: 9700000 | F30: 129333.3333 | G30: kr.
B31: Andre bygninger (tekniske installationer, målere mv.) | C31: 2015 | D31: 75 | E31: 200000 | F31: 2666.666667 | G31: kr.
B32: Ledningsnet > Ø 1600 mm (rørbassiner og transportledninger) | C32: 2015 | D32: 75 | E32: 20200000 | F32: 269333.3333 | G32: kr.
B33: Forklaring, SRO | C33: 2015 | D33: 10 | E33: 500000 | F33: 50000 | G33: kr.
B34: Rådnetanke, slam, Konstruktioner | C34: 2015 | D34: 60 | E34: 3310000 | F34: 55166.66667 | G34: kr.
B35: Pumpestationer i brønde (< 6,25 m2), Mek/EL | C35: 2015 | D35: 20 | E35: 1500000 | F35: 75000 | G35: kr.
B36: Arbejdsplads | C36: 2015 | D36: 5 | E36: 750000 | F36: 150000 | G36: kr.
B37: Køretøjer, personbil | C37: 2015 | D37: 5 | E37: 600000 | F37: 120000 | G37: kr.
B38: Arbejdsplads | C38: 2015 | D38: 5 | E38: 176000 | F38: 35200 | G38: kr.
B39: Tillæg for 2014 | F39: =SUMIF(C8:C38,"2014",F8:F38) -> 2731566.667 | G39: kr.
B40: Tillæg for 2015 | F40: =SUMIF(C8:C38,"2015",F8:F38) -> 1934700 | G40: kr.
B41: Tillæg i alt | F41: =F39+F40 -> 4666266.667 | G41: kr.

Sheet 8. 1-1 omkostninger
A1: ='7. Planlagte investeringer'!A1 -> Haderslev Spildevand A/S
B4: Fane 8. 1:1 omkostninger
B6: Tillæg for budgetterede 1:1 omkostninger i 2015
B7: Betaling til Forsyningssekretariatet | C7: 33000 | D7: kr.
B8: Spildevandsafgift | C8: 2200000 | D8: kr.
B9: Køb af varer og tjenesteydelser hos et andet prisloftreguleret vandselskab | C9: 500000 | D9: kr.
B10: Ejendomsskatter | C10: 500000 | D10: kr.
B11: Tillæg i alt | C11: =SUM(C7:C10) -> 3233000 | D11: kr.
B14: Tillæg for budgetterede nødvendige udgifter til revisorerklæringer samt ordinært medlemskab af DANVA og FVD i 2015
B15: Betaling for ordinært medlemskab af DANVA/FVD | C15: 114000 | D15: kr.
B16: Betaling for revisorerklæringer | C16: 16000 | D16: kr.
B17: Tillæg i alt | C17: =SUM(C15:C16) -> 130000 | D17: kr.
B20: Korrektion af tillæg for faktiske 1:1 omkostninger (inkl. revisorerklæringer og ordinært medlemskab af DANVA/FVD) i 2013
B21: Selskabets faktiske 1:1 omkostninger mv. i 2013, jf. reguleringsregnskabet | C21: 5236317 | D21: kr.
B22: Tillæg for budgetterede 1:1 omkostninger mv. i prisloft 2013 | C22: 3699500 | D22: kr.
B23: Korrektion af tillæg for budgetterede 1:1 omkostninger mv. i 2013 | C23: =C21-C22 -> 1536817 | D23: kr.

Sheet 9. Miljø- og servicemål
A1: ='8. 1-1 omkostninger'!A1 -> Haderslev Spildevand A/S
B4: Fane 9. Driftsomkostninger til miljø- og servicemål
B6: Tillæg for budgetterede driftsomkostninger til miljø- og servicemål i 2015
B7: Henstandsordning for tilslutningsbidrag | C7: 273750 | D7: kr.
B8: Tillæg i alt | C8: =SUM(C7:C7) -> 273750 | D8: kr.
B11: Korrektion af tillæg for faktiske driftsomkostninger til miljø- og servicemål i 2013
B12: Selskabets faktiske driftsomkostninger til miljø- og servicemål i 2013, jf. reguleringsregnskabet | C12: 338524 | D12: kr.
B13: Tillæg for budgetterede driftsomkostninger til miljø- og servicemål i prisloft 2013 | C13: 378000 | D13: kr.
B14: Korrektion af tillæg for budgetterede driftsomkostninger til miljø- og servicemål i 2013 | C14: =C12-C13 -> -39476 | D14: kr.

Sheet 10. Klimatilpasning
A1: ='9. Miljø- og servicemål'!A1 -> Haderslev Spildevand A/S
B4: Fane 10. Medfinansiering af klimatilpasningsprojekter
B7: Tillæg for budgetterede omkostninger til medfinansiering af klimatilpasningsprojekter i 2015
C8: 0 | D8: kr.
B9: Tillæg i alt | C9: =SUM(C8:C8) -> 0 | D9: kr.
B12: Korrektion af tillæg for faktiske omkostninger til medfinansiering af klimatilpasningsprojekter i 2013
B13: Selskabets faktiske driftsomkostninger til klimatilpasningsprojekter i 2013, jf. reguleringsregnskabet | C13: 0 | D13: kr.
B14: Tillæg for budgetterede driftsomkostninger til klimatilpasningsprojekter i prisloft 2013 | C14: 0 | D14: kr.
B15: Korrektion af tillæg for budgetterede omkostninger til klimatilpasningsprojekter i 2013 | C15: =C13-C14 -> 0 | D15: kr.

Sheet 11. Nettofinansielle poster
A1: ='10. Klimatilpasning'!A1 -> Haderslev Spildevand A/S
B4: Fane 11. Nettofinansielle poster
B6: Tillæg for budgetterede nettofinansielle poster i 2015
B7: Budgetterede renteudgifter og gebyrer i 2015 | C7: 781000 | D7: kr.
B8: Budgetterede renteindtægter i 2015 | C8: 0 | D8: kr.
B9: Tillæg/fradrag i alt | C9: =C7-C8 -> 781000 | D9: kr.
B12: Korrektion af tillæg for faktiske nettofinansielle poster i 2013
B13: Selskabets faktiske nettofinansielle poster i 2013, jf. reguleringsregnskabet | C13: 3356 | D13: kr.
B14: Tillæg for budgetterede nettofinansielle poster i prisloft 2013 | C14: 844500 | D14: kr.
B15: Korrektion af tillæg for budgetterede nettofinansielle poster i 2013 | C15: =C13-C14 -> -841144 | D15: kr.

Sheet 12. Over- eller underdækning
A1: ='11. Nettofinansielle poster'!A1 -> Haderslev Spildevand A/S
B4: Fane 12. Over- eller underdækning til og med 2010
B6: Tillæg/fradrag for over- eller underdækning til og med 2010
B7: Opgjort over- eller underdækning per 31. december 2010 | C7: 10141000 | D7: kr.
B8: Heraf beløb indregnet i prislofterne for 2011 - 2014 | C8: 5935834 | D8: kr.
B9: Endnu ikke indregnet over- eller underdækning | C9: =C7-C8 -> 4205166 | D9: kr.
B10: Resterende indregningsperiode (fastsat i prisloftet for 2012) | C10: 6 | D10: år
B11: Tillæg/fradrag i alt | C11: =IF(C7=0,0,C9/C10) -> 700861 | D11: kr.

Sheet 13. Kontrol med indtægtsrammen
A1: ='12. Over- eller underdækning'!A1 -> Haderslev Spildevand A/S
B4: Fane 13. Korrektion for overholdelse af indtægtsrammen i prisloftet for 2013
B6: Samlet opgørelse vedrørende overholdelse af indtægtsrammen i prisloftet for 2013
B7: Indtægtsramme i prisloftet for 2013 | E7: 111911258.8 | F7: kr.
B8: Ikke anvendt likviditet vedrørende investeringer i 2013
B9: Tillæg for historiske investeringer | C9: 54205374.87 | D9: kr.
B10: Tillæg for gennemførte investeringer i 2011 | C10: 3017793 | D10: kr.
B11: Korrektion af tillæg for planlagte investeringer i 2011 | C11: 977016 | D11: kr.
B12: Tillæg for planlagte investeringer i 2012 og 2013 | C12: 2788742 | D12: kr.
B13: Indtægter fra tilslutningsbidrag | C13: 648591 | D13: kr.
B14: Indtægter fra salg af anlægsaktiver | C14: 0 | D14: kr.
B15: Erstatninger vedr. anlægsaktiver mv. | C15: 0 | D15: kr.
B16: Ekstraordinær effektiviseringsgevinst anvendt til investeringer | C16: 0 | D16: kr.
B17: Udgifter til investeringer | C17: -71406577 | D17: kr.
B18: Ikke anvendt likviditet vedr. investeringer i alt | C18: =SUM(C9:C17) -> -9769060.131 | D18: kr. | E18: =IF(C18<0,0,-C18) -> 0 | F18: kr.
B19: Ekstraordinære effektiviseringsgevinster anvendt til takstnedsættelse
B20: Ekstraordinær effektiviseringsgevinst anvendt til takstnedsættelse | C20: 6221238 | D20: kr. | E20: =-C20 -> -6221238 | F20: kr.
B21: Korrektion af ikke opkrævet tillæg fra 2011 i prisloft 2013
B22: Korrektion af ikke opkrævet tillæg fra 2011 i prisloft 2013 | C22: 0 | D22: kr. | E22: =-C22 -> 0 | F22: kr.
B23: Indtægter fra primære aktiviteter mv.
B24: Indtægter fra kubikmetertakster, faste takster, særbidrag, målergebyrer samt andre takster og gebyrer | C24: 97943959 | D24: kr.
B25: Andre indtægter i prisloftåret, som selskabet har opnået i forbindelse med eller som følge af selskabets primære aktiviteter | C25: 0 | D25: kr.
B26: Indtægter fra primære aktiviteter mv. i alt | C26: =SUM(C24:C25) -> 97943959 | D26: kr. | E26: =-C26 -> -97943959 | F26: kr.
B27: Tillæg/fradrag i prisloftet for 2015 i alt | E27: =E7+E18+E20+E22+E26 -> 7746061.825 | F27: kr.
B31: Oversigt over ekstraordinære effektiviseringsgevinster
C33: 2012 | E33: 2013 | G33: 2014 | I33: 2015 | K33: 2016
B34: Indhentet ekstraordinær effektiviseringsgevinst | C34: 4336049 | D34: kr. | E34: 6223903.956 | F34: kr. | H34: kr. | J34: kr. | L34: kr.
B35: Gevinst anvendt til investeringer | C35: 0 | D35: kr. | E35: 0 | F35: kr. | H35: kr. | J35: kr. | L35: kr.
B36: Gevinst anvendt til takstnedsættelse | C36: 4336049 | D36: kr. | E36: 6221238 | F36: kr. | H36: kr. | J36: kr. | L36: kr.
B37: Korrektion for effektiviseringsgevinst der ikke er anvendt inden 4 år | C37: 0 | D37: kr. | E37: 0 | F37: kr. | H37: kr. | J37: kr. | K37: =IF(C38>SUM(E35:I36),C38-SUM(E35:I36),0)*-1 -> 0 | L37: kr.
B38: Resterende gevinst | C38: =C34-C35-C36 -> 0 | D38: kr. | E38: =C38+E34-E35-E36 -> 2665.956268 | F38: kr. | G38: =E38+G34-G35-G36 -> 2665.956268 | H38: kr. | I38: =G38+I34-I35-I36 -> 2665.956268 | J38: kr. | K38: =I38+K34-K35-K36+K37 -> 2665.956268 | L38: kr.
